bitfinex/quotes_SOLUSD_20250803
["timestamp","ask_amount","ask_price","bid_price","bid_amount"]
[1754244423485,0.03,162.17,162.16,231.35067873]
[1754244423805,0.03,162.17,162.16,230.73400385]
[1754244424504,0.03,162.19,162.17,9.05]
[1754244424677,0.03,162.19,162.18,78.90396072]
[1754244424877,0.03,162.19,162.18,79.59396072]
[1754244425103,0.69,162.19,162.18,47.46591872]
[1754244425298,0.69,162.19,162.18,64.25060269]
[1754244425638,10.01736188,162.19,162.18,9.05]
[1754244425910,10.01736188,162.19,162.16,52.307362]
[1754244426085,9.98736188,162.18,162.16,42.98]
[1754244426279,9.32736188,162.18,162.16,42.98]
[1754244426601,0.66,162.17,162.15,52.997362]
[1754244427188,9.98736188,162.17,162.15,52.997362]
[1754244427387,0.66,162.16,162.15,42.98]
[1754244427703,0.66,162.16,162.15,35.327362]
[1754244428304,0.66,162.16,162.15,26.0]
[1754244428489,0.66,162.16,162.15,35.327362]
[1754244429408,0.66,162.16,162.15,26.0]
[1754244429708,0.66,162.16,162.15,9.327362]
[1754244430015,9.98736188,162.16,162.11,35.32736188]
[1754244430190,9.32736188,162.15,162.14,9.327362]
[1754244430521,9.98736188,162.15,162.12,42.98]
[1754244430682,0.66,162.14,162.12,42.98]
[1754244431082,0.66,162.14,162.12,52.307362]
[1754244431508,9.32736188,162.15,162.12,52.307362]
[1754244431815,0.66,162.13,162.12,52.307362]
[1754244435121,0.66,162.13,162.12,61.357362]
[1754244439918,9.32736188,162.15,162.12,61.357362]
[1754244440117,5.27272039,162.14,162.12,61.357362]
[1754244440307,0.68,162.14,162.12,52.03]
[1754244440724,0.68,162.14,162.13,9.327362]
[1754244440916,5.27370975,162.14,162.13,9.327362]
[1754244441100,5.27370975,162.14,162.13,18.377362]
[1754244441702,5.27370975,162.14,162.13,9.05]
[1754244442320,5.27370975,162.14,162.13,18.377362]
[1754244443011,4.59370975,162.14,162.13,18.377362]
[1754244443917,0.03,162.17,162.13,28.38472388]
[1754244443918,0.71,162.17,162.13,28.38472388]
[1754244444135,4.59538089,162.16,162.14,43.64]
[1754244444337,0.71,162.17,162.14,43.64]
[1754244444338,4.59538089,162.15,162.14,43.64]
[1754244444646,10.03736188,162.17,162.14,43.64]
[1754244444926,4.59640577,162.16,162.14,43.64]
[1754244445136,10.03736188,162.17,162.14,43.64]
[1754244445307,4.5965739,162.16,162.14,43.64]
[1754244445494,10.03736188,162.17,162.14,42.96]
[1754244445698,4.59693194,162.16,162.14,42.96]
[1754244445901,10.03736188,162.17,162.14,42.96]
[1754244446116,4.59681212,162.16,162.14,42.96]
[1754244446322,10.03736188,162.17,162.14,42.96]
[1754244446625,4.59782165,162.16,162.15,0.68]
[1754244446932,4.59782165,162.16,162.15,9.05]
[1754244449029,4.59782165,162.16,162.15,9.73]
[1754244449205,4.60116551,162.16,162.15,9.73]
[1754244450012,4.60116551,162.16,162.15,9.05]
[1754244450224,5.28116551,162.16,162.15,9.05]
[1754244450414,14.60852739,162.16,162.15,9.05]
[1754244451407,18.74901147,162.16,162.12,14.668527]
[1754244451711,9.32736188,162.14,162.12,0.06]
[1754244451912,5.28116551,162.13,162.12,0.06]
[1754244458114,5.28327645,162.13,162.12,0.06]
[1754244458535,0.03,162.17,162.12,105.45887289]
[1754244458712,4.60329228,162.16,162.15,42.78468397]
[1754244458914,4.60329228,162.16,162.15,86.38139689]
[1754244459113,4.60329228,162.16,162.15,87.06139689]
[1754244459348,4.60329228,162.16,162.15,91.66468889]
[1754244459528,0.03,162.17,162.15,91.66468889]
[1754244459726,4.60411969,162.16,162.15,91.66468889]
[1754244460028,0.03,162.17,162.15,100.99205077]
[1754244460817,0.03,162.17,162.15,96.38875877]
[1754244461010,0.03,162.17,162.16,9.327362]
[1754244461211,4.63529998,162.17,162.16,9.327362]
[1754244463814,0.03,162.17,162.16,9.327362]
[1754244464014,4.63712822,162.17,162.16,9.327362]
[1754244465420,4.63712822,162.17,162.16,19.34472388]
[1754244466316,0.03,162.17,162.16,45.17940785]
[1754244472117,0.03,162.19,162.16,45.17940785]
[1754244472118,0.03,162.19,162.18,51.83468397]
[1754244472428,0.03,162.19,162.18,104.77864469]
[1754244472639,0.03,162.19,162.18,105.46864469]
[1754244476543,0.03,162.19,162.18,254.86864469]
[1754244476744,0.03,162.19,162.18,256.72354585]
[1754244482460,0.7,162.24,162.23,16.78468397]
[1754244482756,0.7,162.24,162.23,78.70845465]
[1754244487758,0.73,162.24,162.23,78.70845465]
[1754244490543,0.73,162.24,162.23,9.02]
[1754244490745,0.73,162.24,162.23,51.94]
[1754244491757,0.03,162.24,162.23,78.66845465]
[1754244492036,0.03,162.24,162.23,79.35845465]
[1754244492238,0.03,162.24,162.23,78.66845465]
[1754244492666,0.03,162.24,162.23,105.35845465]
[1754244494064,0.03,162.24,162.23,79.35845465]
[1754244497170,0.03,162.25,162.24,26.11204585]
[1754244497371,0.03,162.25,162.24,26.77204585]
[1754244501576,0.03,162.25,162.24,29.24293585]
[1754244501777,0.03,162.25,162.24,28.58293585]
[1754244501953,0.03,162.25,162.24,29.24293585]
[1754244503764,0.03,162.26,162.25,25.64468397]
[1754244504103,0.03,162.26,162.25,79.18837866]
[1754244504393,0.03,162.26,162.25,81.65896366]
[1754244509087,9.35736188,162.32,162.29,16.78468397]
[1754244509395,9.35736188,162.32,162.3,42.92]
[1754244510087,0.03,162.32,162.3,42.92]
[1754244510570,0.03,162.32,162.3,45.390584]
[1754244510769,9.35736188,162.32,162.3,45.390584]
[1754244511171,0.72,162.31,162.3,45.390584]
[1754244512468,10.04736188,162.31,162.3,2.470584]
[1754244512669,10.04736188,162.31,162.3,42.92]
[1754244514977,10.04736188,162.31,162.29,50.37]
[1754244515293,0.72,162.3,162.29,50.37]
[1754244515502,10.04736188,162.3,162.29,50.37]
[1754244515800,10.04736188,162.3,162.29,7.45]
[1754244517976,10.04736188,162.3,162.27,42.92]
[1754244518284,10.04736188,162.29,162.27,42.92]
[1754244518485,0.72,162.28,162.27,42.92]
[1754244520679,9.32736188,162.29,162.27,42.92]
[1754244520871,10.04736188,162.29,162.27,42.92]
[1754244522695,6.68644825,162.29,162.27,42.92]
[1754244523978,6.68644825,162.29,162.27,50.37]
[1754244524582,5.96644825,162.28,162.27,50.37]
[1754244524904,6.66644825,162.28,162.27,50.37]
[1754244525494,11.27990141,162.28,162.27,50.37]
[1754244525684,10.57990141,162.28,162.27,50.37]
[1754244526197,4.61345316,162.28,162.27,50.37]
[1754244526379,10.57990141,162.28,162.27,50.37]
[1754244529687,4.61345316,162.28,162.27,51.04]
[1754244531089,4.61345316,162.28,162.27,51.1]
[1754244532700,0.03,162.32,162.28,16.78468397]
[1754244532902,4.61654628,162.31,162.29,43.53618091]
[1754244533092,4.61654628,162.3,162.29,43.53618091]
[1754244533492,4.61654628,162.3,162.29,42.92]
[1754244533802,4.61654628,162.3,162.29,43.59]
[1754244538687,4.61654628,162.3,162.29,51.04]
[1754244543288,4.61654628,162.3,162.29,50.37]
[1754244543613,4.61654628,162.3,162.28,7.45]
[1754244543614,11.28299453,162.3,162.28,7.45]
[1754244543810,15.44241345,162.29,162.27,42.96]
[1754244544123,15.44241345,162.28,162.27,0.06]
[1754244546722,18.80457293,162.28,162.27,0.06]
[1754244551495,18.80104605,162.28,162.27,0.06]
[1754244558126,18.10104605,162.28,162.27,0.06]
[1754244560627,18.82104605,162.28,162.27,0.06]
[1754244562028,18.82104605,162.28,162.25,0.06]
[1754244562211,9.32860773,162.26,162.25,0.06]
[1754244562527,18.10104605,162.26,162.25,0.06]
[1754244562711,61.08104605,162.26,162.25,0.06]
[1754244562920,61.80104605,162.26,162.25,0.06]
[1754244564724,61.08104605,162.26,162.25,0.06]
[1754244564925,61.80104605,162.26,162.25,0.06]
[1754244567196,61.08104605,162.26,162.25,0.76]
[1754244567404,18.10104605,162.26,162.25,0.76]
[1754244568801,14.74337879,162.26,162.25,0.76]
[1754244569002,14.73758901,162.26,162.25,0.76]
[1754244569530,10.57817009,162.26,162.25,0.76]
[1754244572233,4.60722962,162.26,162.25,0.76]
[1754244572409,10.57817009,162.26,162.25,0.76]
[1754244572617,5.97094047,162.26,162.25,0.76]
[1754244573015,6.69094047,162.26,162.25,0.06]
[1754244573721,15.44017937,162.26,162.25,0.06]
[1754244574233,58.48017937,162.26,162.25,0.06]
[1754244574617,58.48017937,162.26,162.22,7.51]
[1754244574817,5.97094047,162.23,162.22,0.06]
[1754244575025,10.57649819,162.23,162.22,0.06]
[1754244576208,11.29649819,162.23,162.22,0.06]
[1754244576721,14.65891509,162.23,162.22,0.06]
[1754244577504,13.93891509,162.23,162.22,0.06]
[1754244577707,13.93684927,162.23,162.22,0.06]
[1754244578004,14.65684927,162.23,162.22,0.06]
[1754244578412,13.93684927,162.23,162.22,0.06]
[1754244578934,13.93684927,162.23,162.22,0.76]
[1754244583939,13.93684927,162.23,162.22,0.06]
[1754244584843,18.08481936,162.23,162.22,0.06]
[1754244585249,13.93684927,162.23,162.22,0.78]
[1754244586353,18.08634537,162.23,162.22,0.78]
[1754244587750,18.08634537,162.23,162.22,0.06]
[1754244588054,18.78634537,162.23,162.22,0.06]
[1754244589357,18.08634537,162.23,162.22,0.06]
[1754244591164,18.08634537,162.23,162.22,0.78]
[1754244592155,18.08634537,162.23,162.22,0.06]
[1754244592557,18.08634537,162.23,162.22,0.78]
[1754244592938,18.08634537,162.23,162.22,0.06]
[1754244593280,18.78634537,162.23,162.22,0.06]
[1754244594983,18.79617683,162.23,162.22,0.06]
[1754244596186,18.09617683,162.23,162.22,0.06]
[1754244598759,14.73583266,162.23,162.22,0.06]
[1754244599469,58.39583266,162.23,162.22,0.06]
[1754244599874,63.55224397,162.23,162.22,0.06]
[1754244600075,63.55224397,162.23,162.18,0.06]
[1754244600258,9.46281946,162.22,162.18,0.06]
[1754244600576,4.1494961,162.21,162.19,0.72]
[1754244600782,4.61396966,162.2,162.18,0.06]
[1754244600950,4.61396966,162.19,162.18,0.06]
[1754244601359,4.61396966,162.19,162.18,0.78]
[1754244601677,10.58698286,162.19,162.18,0.06]
[1754244601865,14.74050545,162.19,162.18,0.78]
[1754244602773,14.73989529,162.19,162.18,0.78]
[1754244602957,14.73915675,162.19,162.18,0.78]
[1754244603285,14.7397106,162.19,162.18,0.78]
[1754244603571,14.7397106,162.19,162.18,0.06]
[1754244603795,15.4397106,162.19,162.18,0.06]
[1754244611290,10.8263511,162.19,162.18,0.06]
[1754244611487,15.4262718,162.19,162.18,0.06]
[1754244612286,14.7262718,162.19,162.18,0.78]
[1754244613500,4.5999207,162.19,162.18,0.78]
[1754244614476,5.9730132,162.21,162.18,0.78]
[1754244614778,4.60062183,162.2,162.18,0.78]
[1754244614982,4.60062183,162.19,162.18,0.78]
[1754244615204,4.60062183,162.2,162.18,0.78]
[1754244615398,4.60062183,162.19,162.18,0.78]
[1754244615598,4.60062183,162.19,162.18,9.28]
[1754244617082,9.33291699,162.21,162.18,9.28]
[1754244617287,4.60230954,162.2,162.19,0.71]
[1754244617676,4.60230954,162.2,162.19,9.21]
[1754244618077,4.60230954,162.2,162.19,0.71]
[1754244619291,4.60230954,162.2,162.19,27.44416178]
[1754244619600,4.60230954,162.2,162.19,17.49468397]
[1754244620395,4.60230954,162.2,162.19,9.21]
[1754244621209,13.93522653,162.2,162.19,9.21]
[1754244621506,13.93522653,162.2,162.19,8.5]
[1754244622502,13.93522653,162.2,162.19,9.21]
[1754244623087,4.60230954,162.2,162.19,9.21]
[1754244624398,4.60230954,162.2,162.19,0.71]
[1754244628810,4.60698374,162.2,162.19,0.71]
[1754244630406,4.60698374,162.2,162.19,9.21]
[1754244631603,9.33291699,162.22,162.19,9.21]
[1754244631787,4.60697306,162.21,162.19,9.21]
[1754244632085,4.60697306,162.2,162.19,9.21]
[1754244634920,13.93989005,162.2,162.19,8.5]
[1754244635290,14.60989005,162.2,162.19,8.5]
[1754244635491,18.75572139,162.2,162.18,0.06]
[1754244635695,14.60989005,162.19,162.18,0.06]
[1754244635891,18.75552931,162.19,162.18,0.06]
[1754244637607,18.75420235,162.19,162.18,0.06]
[1754244647427,8.75128536,162.19,162.18,0.78]
[1754244647715,18.08420235,162.19,162.18,0.78]
[1754244649100,18.07983369,162.19,162.18,0.78]
[1754244649720,18.07983369,162.19,162.18,0.06]
[1754244651108,18.77983369,162.19,162.18,0.06]
[1754244651826,18.07983369,162.19,162.18,0.06]
[1754244656909,61.03983369,162.19,162.18,0.06]
[1754244660595,18.07983369,162.19,162.18,0.06]
[1754244660801,8.7469167,162.19,162.18,0.78]
[1754244660997,18.07983369,162.19,162.18,0.78]
[1754244662912,8.7469167,162.19,162.18,0.78]
[1754244663111,4.60127744,162.19,162.18,0.78]
[1754244663515,4.60127744,162.19,162.18,3.25257]
[1754244663906,4.60383819,162.19,162.18,12.58548699]
[1754244664403,4.60383819,162.19,162.18,3.25257]
[1754244665834,4.60383819,162.19,162.18,11.75257]
[1754244668936,4.60383819,162.19,162.18,21.08548699]
[1754244669100,4.60479706,162.19,162.18,21.08548699]
[1754244671111,4.60479706,162.19,162.18,11.75257]
[1754244674043,4.60479706,162.19,162.18,11.03257]
[1754244674336,13.93771405,162.19,162.18,8.56]
[1754244676837,13.93741058,162.19,162.18,8.56]
[1754244677644,13.93741058,162.19,162.18,0.06]
[1754244679525,4.60449359,162.19,162.18,0.06]
[1754244679837,13.93741058,162.19,162.18,0.06]
[1754244680227,4.60449359,162.19,162.18,0.06]
[1754244680528,13.93741058,162.19,162.18,0.06]
[1754244683235,4.60449359,162.19,162.18,18.55291699]
[1754244683546,4.60449359,162.19,162.18,45.3171168]
[1754244684542,4.60697794,162.19,162.18,45.3171168]
[1754244689653,4.60697794,162.19,162.18,19.19951584]
[1754244689858,4.60697794,162.19,162.18,8.56]
[1754244692042,4.60697794,162.19,162.18,18.55291699]
[1754244692436,4.60697794,162.19,162.18,10.05291699]
[1754244693049,4.60697794,162.19,162.18,0.72]
[1754244693638,4.60697794,162.19,162.18,10.05291699]
[1754244693854,4.60697794,162.19,162.18,19.38583399]
[1754244694862,4.60697794,162.19,162.18,9.392917]
[1754244695353,4.60697794,162.19,162.18,0.06]
[1754244695552,5.29697794,162.19,162.18,0.06]
[1754244695761,14.62989493,162.19,162.18,0.06]
[1754244696174,4.60697794,162.19,162.18,0.72]
[1754244696651,4.60697794,162.19,162.18,10.05291699]
[1754244697075,4.60709097,162.19,162.18,10.05291699]
[1754244698364,4.60709097,162.19,162.18,18.55291699]
[1754244700360,4.60709097,162.19,162.18,9.22]
[1754244704940,4.60709097,162.19,162.18,18.55291699]
[1754244705141,4.60709097,162.19,162.18,17.89291699]
[1754244705765,4.60709097,162.19,162.18,18.59291699]
[1754244712269,4.61340946,162.19,162.18,35.37760096]
[1754244715965,4.61227631,162.19,162.18,35.37760096]
[1754244722678,4.61227631,162.19,162.18,25.34468397]
[1754244724583,4.61227631,162.19,162.18,26.04468397]
[1754244727092,4.61227631,162.19,162.18,35.37617685]
[1754244727800,4.61227631,162.19,162.18,26.04468397]
[1754244728196,4.61227631,162.19,162.18,25.34468397]
[1754244728700,4.61227631,162.19,162.18,26.04468397]
[1754244729982,4.61227631,162.19,162.18,35.37617685]
[1754244735207,4.61227631,162.19,162.18,26.04468397]
[1754244735521,5.29227631,162.19,162.18,51.52]
[1754244735688,5.29227631,162.19,162.18,8.56]
[1754244737690,18.77674186,162.19,162.18,0.06]
[1754244744735,15.42252342,162.19,162.18,0.06]
[1754244747635,14.74252342,162.19,162.18,0.06]
[1754244747936,14.74252342,162.19,162.18,0.75]
[1754244748310,14.74252342,162.19,162.18,0.06]
[1754244749550,15.42252342,162.19,162.18,0.06]
[1754244750735,18.78408969,162.19,162.18,0.06]
[1754244753636,18.77209913,162.19,162.18,0.06]
[1754244755736,18.09209913,162.19,162.18,0.06]
[1754244756641,18.09209913,162.19,162.18,0.75]
[1754244758137,18.09209913,162.19,162.18,0.06]
[1754244760038,13.93912646,162.19,162.18,0.75]
[1754244760744,13.93973283,162.19,162.18,0.75]
[1754244761239,13.93973283,162.19,162.18,0.06]
[1754244762234,9.33884071,162.19,162.18,0.06]
[1754244762547,13.94007999,162.19,162.18,0.06]
[1754244765968,13.94007999,162.19,162.18,0.78]
[1754244768027,4.60123928,162.19,162.18,0.78]
[1754244772338,4.60123928,162.19,162.18,9.28]
[1754244773232,4.60123928,162.19,162.18,18.56]
[1754244780998,4.60123928,162.19,162.18,17.84]
[1754244781154,14.63256509,162.19,162.18,8.56]
[1754244781659,5.30123928,162.19,162.18,8.56]
[1754244781971,4.60123928,162.19,162.18,8.56]
[1754244785981,14.63256509,162.19,162.18,8.56]
[1754244786264,18.77936499,162.19,162.18,8.56]
[1754244786575,9.44803918,162.19,162.18,8.56]
[1754244786945,5.30123928,162.19,162.18,8.56]
[1754244787155,18.77956925,162.19,162.18,8.56]
[1754244787364,18.78714358,162.19,162.18,8.56]
[1754244788681,8.75581777,162.19,162.18,8.56]
[1754244790077,8.75581777,162.19,162.18,0.06]
[1754244793393,18.08714358,162.19,162.18,0.06]
[1754244794691,14.73016532,162.19,162.18,0.06]
[1754244798167,8.75581777,162.19,162.18,0.06]
[1754244798399,8.75581777,162.19,162.18,0.73]
[1754244798563,4.60881361,162.19,162.18,0.73]
[1754244799076,4.61498178,162.19,162.18,0.73]
[1754244801893,4.61498178,162.19,162.18,9.23]
[1754244802096,4.61498178,162.19,162.18,8.56]
[1754244802482,15.40315564,162.19,162.18,8.56]
[1754244802990,14.74315564,162.19,162.18,8.56]
[1754244805478,8.76880809,162.19,162.18,8.56]
[1754244805678,8.76880809,162.19,162.18,9.23]
[1754244807795,8.76880809,162.19,162.18,0.73]
[1754244812008,8.76880809,162.19,162.18,0.06]
[1754244815605,8.76880809,162.19,162.18,0.73]
[1754244820114,8.77360673,162.19,162.18,0.73]
[1754244820999,8.77360673,162.19,162.18,0.06]
[1754244824716,8.77812751,162.19,162.18,0.06]
[1754244825822,8.77901126,162.19,162.18,0.06]
[1754244829019,9.44901126,162.19,162.18,0.06]
[1754244829791,8.77901126,162.19,162.18,0.06]
[1754244830321,26.0,162.17,162.15,0.06]
[1754244830521,42.78468397,162.15,162.08,0.06]
[1754244830709,31.97434755,162.11,162.08,0.06]
[1754244830900,8.77901126,162.11,162.08,0.77]
[1754244831105,14.75335881,162.11,162.09,0.71]
[1754244831825,14.75335881,162.11,162.08,0.06]
[1754244832000,14.75335881,162.11,162.08,0.77]
[1754244832705,8.77901126,162.11,162.1,0.77]
[1754244833112,4.62518495,162.11,162.1,0.77]
[1754244836501,10.5995325,162.11,162.1,0.06]
[1754244836813,15.41485543,162.11,162.1,0.06]
[1754244838698,18.78728073,162.11,162.1,0.06]
[1754244839094,18.76187188,162.11,162.1,0.06]
[1754244841410,18.75884208,162.11,162.1,0.06]
[1754244841609,62.37884208,162.11,162.1,0.06]
[1754244846103,62.36244276,162.11,162.1,0.06]
[1754244849829,62.34950091,162.11,162.1,0.06]
[1754244852433,57.76569646,162.11,162.1,0.06]
[1754244852638,62.34714027,162.11,162.1,0.06]
[1754244854239,71.69391312,162.11,162.1,0.06]
[1754244857837,62.34714027,162.11,162.1,0.06]
[1754244858225,62.34429539,162.11,162.1,0.06]
[1754244858641,58.98163718,162.11,162.1,0.06]
[1754244859148,82.91809574,162.11,162.1,0.06]
[1754244862226,39.29809574,162.11,162.1,0.06]
[1754244862437,82.79809574,162.11,162.1,0.06]
[1754244863428,58.86163718,162.11,162.1,0.06]
[1754244865542,58.84163718,162.11,162.1,0.06]
[1754244866841,53.59303825,162.11,162.1,0.06]
[1754244867046,82.11312938,162.11,162.1,0.06]
[1754244868041,38.63312938,162.11,162.1,0.06]
[1754244868244,82.07312938,162.11,162.1,0.06]
[1754244868439,38.63312938,162.11,162.1,0.06]
[1754244868644,82.07312938,162.11,162.1,0.06]
[1754244868953,38.63312938,162.11,162.1,0.06]
[1754244869125,82.07312938,162.11,162.1,0.06]
[1754244869541,58.13667082,162.11,162.1,0.06]
[1754244871345,63.29782533,162.11,162.1,0.06]
[1754244873338,26.0,162.09,162.08,0.75]
[1754244873540,34.71255618,162.09,162.08,0.75]
[1754244873730,78.11255618,162.09,162.08,0.75]
[1754244874534,34.71255618,162.09,162.08,0.75]
[1754244874734,78.11255618,162.09,162.08,0.75]
[1754244874942,34.71255618,162.09,162.08,0.75]
[1754244875144,78.11255618,162.09,162.08,0.75]
[1754244875345,83.27371069,162.09,162.08,0.75]
[1754244875555,89.25782533,162.09,162.08,0.75]
[1754244878478,89.28692874,162.09,162.08,0.75]
[1754244878965,89.26692874,162.09,162.08,0.75]
[1754244879142,89.24692874,162.09,162.08,0.75]
[1754244880052,45.88692874,162.09,162.08,0.75]
[1754244880258,89.24692874,162.09,162.08,0.75]
[1754244880649,84.08577423,162.09,162.06,0.06]
[1754244880862,13.93519654,162.08,162.06,0.06]
[1754244881086,52.10165959,162.07,162.06,0.06]
[1754244881546,58.09212811,162.07,162.06,0.06]
[1754244882252,58.09214744,162.07,162.06,0.06]
[1754244882566,58.09214744,162.07,162.06,0.75]
[1754244888878,63.28568439,162.07,162.06,0.75]
[1754244890979,19.92568439,162.07,162.06,0.75]
[1754244891281,58.03214744,162.07,162.06,0.75]
[1754244891451,63.22568439,162.07,162.06,0.75]
[1754244900193,19.92568439,162.07,162.06,0.75]
[1754244900370,63.16568439,162.07,162.06,0.75]
[1754244902083,63.16568439,162.07,162.06,0.06]
[1754244902652,65.60636616,162.07,162.05,0.1]
[1754244902863,15.43214744,162.06,162.05,0.1]
[1754244903277,22.36570693,162.06,162.05,0.1]
[1754244904268,15.68159229,162.06,162.05,0.1]
[1754244904465,57.20509102,162.06,162.05,0.78]
[1754244904789,8.7480328,162.06,162.05,0.78]
[1754244906459,4.12892361,162.06,162.05,0.78]
[1754244906672,8.74837845,162.06,162.05,0.78]
[1754244908600,8.74837845,162.06,162.05,9.28]
[1754244910094,8.74802349,162.06,162.05,9.28]
[1754244912492,8.74802349,162.06,162.05,15.26411464]
[1754244912795,8.74802349,162.06,162.05,9.28]
[1754244918179,8.74586913,162.06,162.05,9.28]
[1754244920099,8.74586913,162.06,162.05,15.26411464]
[1754244920584,4.61694552,162.06,162.05,15.26411464]
[1754244929286,9.46727452,162.06,162.05,8.6]
[1754244929486,15.45138916,162.06,162.05,8.6]
[1754244932124,15.45138916,162.06,162.05,0.1]
[1754244935398,15.44364998,162.06,162.05,0.1]
[1754244937831,15.47364998,162.06,162.05,0.1]
[1754244938324,15.47379028,162.06,162.05,0.1]
[1754244939720,14.77379028,162.06,162.05,0.1]
[1754244940032,15.47379028,162.06,162.05,0.1]
[1754244941149,15.47282973,162.06,162.05,0.1]
[1754244943235,15.47282973,162.06,162.03,0.1]
[1754244943417,5.98411464,162.04,162.03,0.1]
[1754244943610,57.88282973,162.04,162.03,0.1]
[1754244943914,26.0,162.02,162.01,1.52242958]
[1754244944115,83.90282973,162.02,162.01,1.52242958]
[1754244944334,89.80471093,162.02,162.01,1.52242958]
[1754244944530,84.62282973,162.02,162.01,1.52242958]
[1754244947144,89.80471093,162.02,162.01,1.52242958]
[1754244947712,16.78468397,162.01,161.93,0.1]
[1754244947913,5.98411464,161.94,161.93,0.1]
[1754244948137,10.59250073,161.94,161.93,0.1]
[1754244949649,10.57455555,161.94,161.93,0.1]
[1754244950218,11.29455555,161.94,161.93,0.1]
[1754244950745,14.67583951,161.94,161.93,0.1]
[1754244951732,18.80047741,161.94,161.93,0.1]
[1754244952150,44.80047741,161.94,161.93,0.1]
[1754244954244,83.87583951,161.94,161.93,0.1]
[1754244958762,83.15583951,161.94,161.93,0.1]
[1754244960855,39.95583951,161.94,161.93,0.1]
[1754244961060,83.15583951,161.94,161.93,0.1]
[1754244961446,83.13021457,161.94,161.93,0.1]
[1754244961954,78.5653986,161.94,161.93,0.1]
[1754244962360,83.1310416,161.94,161.93,0.1]
[1754244964161,83.1110416,161.94,161.93,0.1]
[1754244965065,83.8310416,161.94,161.93,0.1]
[1754244965731,26.0,161.92,161.91,0.06]
[1754244965933,83.1301958,161.92,161.91,0.06]
[1754244966169,83.8501958,161.92,161.91,0.06]
[1754244968252,100.63487977,161.92,161.91,0.06]
[1754244969851,104.74291709,161.92,161.91,0.06]
[1754244970367,104.74360476,161.92,161.91,0.06]
[1754244973472,61.54360476,161.92,161.91,0.06]
[1754244973772,104.72360476,161.92,161.91,0.06]
[1754244979274,113.00313608,161.92,161.91,0.06]
[1754244981071,69.82313608,161.92,161.91,0.06]
[1754244981268,112.98313608,161.92,161.91,0.06]
[1754244984279,69.82313608,161.92,161.91,0.06]
[1754244984483,112.98313608,161.92,161.91,0.06]
[1754244985580,118.11629465,161.92,161.91,0.06]
[1754244985976,129.50571465,161.92,161.91,0.06]
[1754244986282,124.37255608,161.92,161.89,0.1]
[1754244986479,26.15008257,161.9,161.89,0.1]
[1754244986679,77.98360476,161.9,161.89,0.1]
[1754244986883,26.0,161.87,161.84,0.69]
[1754244987078,9.3653986,161.85,161.84,0.69]
[1754244987258,18.03892079,161.85,161.84,0.69]
[1754244988386,18.03892079,161.85,161.82,0.69]
[1754244988589,9.3653986,161.83,161.77,35.3653986]
[1754244988789,9.3653986,161.81,161.77,35.3653986]
[1754244988972,52.5253986,161.81,161.77,35.3653986]
[1754244989285,4.58708479,161.8,161.78,0.69]
[1754244989464,52.5253986,161.81,161.78,0.69]
[1754244989664,4.58708758,161.8,161.78,0.69]
[1754244989887,52.5253986,161.81,161.78,0.69]
[1754244990076,4.58708758,161.8,161.78,0.69]
[1754244990277,52.5253986,161.81,161.78,0.69]
[1754244990486,4.5880813,161.8,161.78,0.69]
[1754244990685,52.5253986,161.81,161.78,0.69]
[1754244990868,4.58808219,161.8,161.78,0.69]
[1754244991208,52.5253986,161.81,161.78,0.69]
[1754244991493,4.58923687,161.8,161.79,0.69]
[1754244991668,43.16,161.83,161.79,10.0553986]
[1754244991989,26.0,161.87,161.8,0.69]
[1754244992174,9.3653986,161.85,161.8,10.0553986]